[Event "GrandPrix_29.05"]
[Site "Chess.com"]
[Date "2020.05.29"]
[Round "3"]
[White "Kildepiotr"]
[Black "igorkovalenko"]
[Result "1/2-1/2"]
[WhiteElo "2193"]
[BlackElo "2104"]
[TimeControl "600+2"]
[EndTime "10:31:26 PDT"]
[Termination "Game drawn by repetition"]

1. Nf3 {[%clk 0:10:01.9]} 1... c5 {[%clk 0:10:00.1]} 2. g3 {[%clk 0:10:02.4]}
2... Nc6 {[%clk 0:10:01]} 3. Bg2 {[%clk 0:10:03.1]} 3... g6 {[%clk 0:09:58.7]}
4. O-O {[%clk 0:10:02.4]} 4... Bg7 {[%clk 0:10:00]} 5. c3 {[%clk 0:10:03.4]}
5... d5 {[%clk 0:09:40.4]} 6. d4 {[%clk 0:10:02.9]} 6... cxd4 {[%clk 0:09:41.6]}
7. cxd4 {[%clk 0:10:03.7]} 7... Bg4 {[%clk 0:09:42.7]} 8. Nc3 {[%clk 0:09:53.4]}
8... Bxf3 {[%clk 0:09:39.7]} 9. Bxf3 {[%clk 0:09:53.9]} 9... e6 {[%clk
0:09:41.2]} 10. e3 {[%clk 0:09:53]} 10... Nge7 {[%clk 0:09:42]} 11. b3 {[%clk
0:09:53.4]} 11... O-O {[%clk 0:09:42.6]} 12. Ba3 {[%clk 0:09:51.3]} 12... Qd7
{[%clk 0:09:43.2]} 13. Rc1 {[%clk 0:09:48.4]} 13... Rfc8 {[%clk 0:09:43.3]} 14.
Be2 {[%clk 0:09:47.6]} 14... Bf8 {[%clk 0:09:42.6]} 15. Na4 {[%clk 0:09:47.6]}
15... Nf5 {[%clk 0:09:39.6]} 16. Bxf8 {[%clk 0:09:47]} 16... Kxf8 {[%clk
0:09:40.4]} 17. Nc5 {[%clk 0:09:47.1]} 17... Qe7 {[%clk 0:09:41.5]} 18. Qd2
{[%clk 0:09:44.7]} 18... Nd6 {[%clk 0:09:38.1]} 19. Bd3 {[%clk 0:09:38.4]} 19...
Rc7 {[%clk 0:09:33.7]} 20. Rc3 {[%clk 0:09:35.3]} 20... Rac8 {[%clk 0:09:34.3]}
21. Rfc1 {[%clk 0:09:36]} 21... Nd8 {[%clk 0:09:24.7]} 22. Na4 {[%clk
0:09:30.2]} 22... Rxc3 {[%clk 0:09:21.3]} 23. Rxc3 {[%clk 0:09:32.1]} 23... Rc6
{[%clk 0:09:19.6]} 24. Rxc6 {[%clk 0:09:30.2]} 24... Nxc6 {[%clk 0:09:21.5]} 25.
Qc3 {[%clk 0:09:27]} 25... h5 {[%clk 0:09:15.2]} 26. h4 {[%clk 0:09:27.3]} 26...
Qd8 {[%clk 0:08:59.5]} 27. Nc5 {[%clk 0:09:14.4]} 27... Ne7 {[%clk 0:08:57.6]}
28. Qb4 {[%clk 0:09:11.8]} 28... Qc7 {[%clk 0:08:49.6]} 29. Kg2 {[%clk 0:08:59]}
29... Kg7 {[%clk 0:08:48.9]} 30. a4 {[%clk 0:08:56.7]} 30... a5 {[%clk
0:08:46.1]} 31. Qc3 {[%clk 0:08:44.8]} 31... Qd8 {[%clk 0:08:07.1]} 32. b4
{[%clk 0:08:33.3]} 32... b6 {[%clk 0:08:02.9]} 33. Nb3 {[%clk 0:08:33.5]} 33...
axb4 {[%clk 0:08:02.3]} 34. Qxb4 {[%clk 0:08:34]} 34... Nc6 {[%clk 0:08:00]} 35.
Qc3 {[%clk 0:08:33.6]} 35... Na5 {[%clk 0:07:48.4]} 36. Nxa5 {[%clk 0:08:25]}
36... bxa5 {[%clk 0:07:50.3]} 37. Qc5 {[%clk 0:08:25]} 37... Ne8 {[%clk
0:07:46.3]} 38. Be2 {[%clk 0:08:15]} 38... Nf6 {[%clk 0:07:46.2]} 39. Bf3 {[%clk
0:08:15.5]} 39... Ng8 {[%clk 0:07:39.3]} 40. Be2 {[%clk 0:08:13.3]} 40... Nh6
{[%clk 0:07:40.1]} 41. Bd3 {[%clk 0:08:09.7]} 41... Kg8 {[%clk 0:07:17.6]} 42.
Bc2 {[%clk 0:08:04.1]} 42... Kh8 {[%clk 0:07:16.2]} 43. Bd3 {[%clk 0:08:04.5]}
43... Kg7 {[%clk 0:07:17.1]} 44. Bc2 {[%clk 0:08:05.1]} 44... Kf6 {[%clk
0:07:01]} 45. Bd3 {[%clk 0:08:01.5]} 45... g5 {[%clk 0:06:54.1]} 46. hxg5+
{[%clk 0:07:56.1]} 46... Kxg5 {[%clk 0:06:56]} 47. Qc1 {[%clk 0:07:42.5]} 47...
Kf6 {[%clk 0:06:41.9]} 48. Qh1 {[%clk 0:07:34.5]} 48... Kg7 {[%clk 0:06:37.6]}
49. Qxh5 {[%clk 0:07:34.2]} 49... Ng8 {[%clk 0:06:23.8]} 50. g4 {[%clk
0:07:21.7]} 50... Qd7 {[%clk 0:06:11.4]} 51. g5 {[%clk 0:07:05.8]} 51... Kf8
{[%clk 0:06:01.6]} 52. g6 {[%clk 0:06:57.7]} 52... f5 {[%clk 0:05:55.7]} 53. Qh2
{[%clk 0:06:17.8]} 53... Qe7 {[%clk 0:05:49.3]} 54. Qb8+ {[%clk 0:06:11.8]}
54... Kg7 {[%clk 0:05:49.4]} 55. Qa8 {[%clk 0:06:12.4]} 55... Qg5+ {[%clk
0:04:26.9]} 56. Kf1 {[%clk 0:05:59.7]} 56... Qh5 {[%clk 0:04:11.5]} 57. Ke1
{[%clk 0:05:50.8]} 57... Qh1+ {[%clk 0:03:48.2]} 58. Ke2 {[%clk 0:05:41.6]}
58... Qh5+ {[%clk 0:03:37.6]} 59. Kd2 {[%clk 0:05:23.2]} 59... Qf3 {[%clk
0:03:31.1]} 60. Qe8 {[%clk 0:04:03.4]} 60... Nh6 {[%clk 0:03:29.7]} 61. Qxe6
{[%clk 0:03:55]} 61... Qxf2+ {[%clk 0:03:29.9]} 62. Be2 {[%clk 0:03:47.3]} 62...
Qg2 {[%clk 0:03:30.9]} 63. Qb6 {[%clk 0:03:03.5]} 63... Qe4 {[%clk 0:03:15.3]}
64. Qxa5 {[%clk 0:02:57.5]} 64... Kxg6 {[%clk 0:01:56.5]} 65. Qb6+ {[%clk
0:02:52]} 65... Kg5 {[%clk 0:01:44]} 66. Qd8+ {[%clk 0:02:39.4]} 66... Kg6
{[%clk 0:01:43.8]} 67. a5 {[%clk 0:02:30.2]} 67... Nf7 {[%clk 0:00:38.3]} 68.
Qg8+ {[%clk 0:02:09.3]} 68... Kf6 {[%clk 0:00:39]} 69. Bh5 {[%clk 0:02:07.1]}
69... Nd6 {[%clk 0:00:39.8]} 70. Qf8+ {[%clk 0:01:52.3]} 70... Ke6 {[%clk
0:00:40.2]} 71. Be2 {[%clk 0:01:09.3]} 71... Qb1 {[%clk 0:00:31.7]} 72. Qg8+
{[%clk 0:00:54.6]} 72... Ke7 {[%clk 0:00:29.4]} 73. Qg7+ {[%clk 0:00:45.9]}
73... Kd8 {[%clk 0:00:26.9]} 74. Bd3 {[%clk 0:00:37.6]} 74... Qa2+ {[%clk
0:00:21.5]} 75. Kd1 {[%clk 0:00:37.5]} 75... Qxa5 {[%clk 0:00:15.1]} 76. Qf6+
{[%clk 0:00:33.4]} 76... Kc7 {[%clk 0:00:15.4]} 77. Qe7+ {[%clk 0:00:31]} 77...
Kc6 {[%clk 0:00:15.5]} 78. Qe6 {[%clk 0:00:31.2]} 78... Qa4+ {[%clk 0:00:12]}
79. Ke2 {[%clk 0:00:28.5]} 79... f4 {[%clk 0:00:11.6]} 80. exf4 {[%clk
0:00:25.1]} 80... Qxd4 {[%clk 0:00:11.9]} 81. f5 {[%clk 0:00:18.2]} 81... Qg4+
{[%clk 0:00:12.8]} 82. Kd2 {[%clk 0:00:15.6]} 82... Qf4+ {[%clk 0:00:08.8]} 83.
Qe3 {[%clk 0:00:13.7]} 83... Qb4+ {[%clk 0:00:08.8]} 84. Ke2 {[%clk 0:00:12.9]}
84... Qb2+ {[%clk 0:00:08.3]} 85. Kf3 {[%clk 0:00:10.7]} 85... Qh8 {[%clk
0:00:06.5]} 86. Qe6 {[%clk 0:00:07.5]} 86... Kc5 {[%clk 0:00:07.3]} 87. Qe3+
{[%clk 0:00:06.9]} 87... d4 {[%clk 0:00:08]} 88. Qf4 {[%clk 0:00:05.2]} 88...
Qh3+ {[%clk 0:00:05.2]} 89. Ke2 {[%clk 0:00:05.3]} 89... Qg2+ {[%clk 0:00:05.2]}
90. Kd1 {[%clk 0:00:04.2]} 90... Qg1+ {[%clk 0:00:03.5]} 91. Kd2 {[%clk
0:00:05.4]} 91... Qg2+ {[%clk 0:00:04.4]} 92. Kd1 {[%clk 0:00:05.7]} 92... Qh1+
{[%clk 0:00:05.5]} 93. Kd2 {[%clk 0:00:06.5]} 93... Qg2+ {[%clk 0:00:04.8]} 94.
Kd1 {[%clk 0:00:07.4]} 1/2-1/2

[Event "GrandPrix_29.05"]
[Site "Chess.com"]
[Date "2020.05.29"]
[Round "3"]
[White "kosmeg"]
[Black "SoltaniciR"]
[Result "0-1"]
[WhiteElo "2068"]
[BlackElo "2093"]
[TimeControl "600+2"]
[EndTime "10:31:33 PDT"]
[Termination "SoltaniciR won by checkmate"]

1. Nf3 {[%clk 0:10:01.9]} 1... c5 {[%clk 0:09:58.3]} 2. c4 {[%clk 0:10:01.8]}
2... Nf6 {[%clk 0:09:58.2]} 3. d4 {[%clk 0:10:02.2]} 3... cxd4 {[%clk
0:09:58.3]} 4. Nxd4 {[%clk 0:10:04.1]} 4... e6 {[%clk 0:09:54.4]} 5. g3 {[%clk
0:10:04.3]} 5... Bb4+ {[%clk 0:09:47.8]} 6. Bd2 {[%clk 0:10:03.9]} 6... Be7
{[%clk 0:09:41.4]} 7. Bg2 {[%clk 0:10:00.4]} 7... Nc6 {[%clk 0:09:42]} 8. Nb3
{[%clk 0:09:36.1]} 8... d5 {[%clk 0:09:38.8]} 9. cxd5 {[%clk 0:09:34.3]} 9...
exd5 {[%clk 0:09:39.8]} 10. O-O {[%clk 0:09:31.4]} 10... O-O {[%clk 0:09:24.6]}
11. Nc3 {[%clk 0:09:10.3]} 11... d4 {[%clk 0:08:28.4]} 12. Nb5 {[%clk
0:08:24.8]} 12... Qb6 {[%clk 0:07:32.5]} 13. N5xd4 {[%clk 0:06:59.3]} 13... Ne5
{[%clk 0:06:56.4]} 14. Rc1 {[%clk 0:06:45]} 14... Bg4 {[%clk 0:06:15]} 15. h3
{[%clk 0:06:40]} 15... Bd7 {[%clk 0:05:58.3]} 16. Bf4 {[%clk 0:05:18.4]} 16...
Nc6 {[%clk 0:05:46.9]} 17. Nxc6 {[%clk 0:04:59.5]} 17... Bxc6 {[%clk 0:05:47.4]}
18. Qd4 {[%clk 0:04:44.3]} 18... Qa6 {[%clk 0:05:41.6]} 19. Bxc6 {[%clk
0:04:22.2]} 19... bxc6 {[%clk 0:05:43.5]} 20. Qc4 {[%clk 0:04:23.7]} 20... Qc8
{[%clk 0:05:09.3]} 21. Kg2 {[%clk 0:04:14]} 21... Qf5 {[%clk 0:05:03]} 22. Nd4
{[%clk 0:04:04.7]} 22... Qe4+ {[%clk 0:04:32.6]} 23. f3 {[%clk 0:04:03.6]} 23...
Qg6 {[%clk 0:04:33.3]} 24. Qc2 {[%clk 0:03:25.2]} 24... c5 {[%clk 0:03:15.9]}
25. Nc6 {[%clk 0:03:02.7]} 25... Rfe8 {[%clk 0:03:16.1]} 26. Qxg6 {[%clk
0:03:00.4]} 26... hxg6 {[%clk 0:03:17.2]} 27. e4 {[%clk 0:02:59.4]} 27... Bf8
{[%clk 0:03:12.9]} 28. Rfd1 {[%clk 0:02:39.7]} 28... Re6 {[%clk 0:03:06.2]} 29.
Na5 {[%clk 0:02:23.3]} 29... Ra6 {[%clk 0:03:04.3]} 30. Bd2 {[%clk 0:02:18.2]}
30... Rb8 {[%clk 0:02:55.9]} 31. Bc3 {[%clk 0:02:16.6]} 31... Rb5 {[%clk
0:02:55.8]} 32. Nc4 {[%clk 0:02:06.8]} 32... Ra4 {[%clk 0:02:49.2]} 33. Bxf6
{[%clk 0:01:59.5]} 33... gxf6 {[%clk 0:02:51.1]} 34. a3 {[%clk 0:01:51.6]} 34...
Rb7 {[%clk 0:02:35.1]} 35. Rd5 {[%clk 0:01:45.1]} 35... Kg7 {[%clk 0:02:31.5]}
36. h4 {[%clk 0:01:43.2]} 36... Ra6 {[%clk 0:02:18.8]} 37. Kf2 {[%clk
0:01:42.1]} 37... Re7 {[%clk 0:01:58.5]} 38. Rc3 {[%clk 0:01:36]} 38... Rb7
{[%clk 0:01:48.7]} 39. Ke2 {[%clk 0:01:33.2]} 39... Be7 {[%clk 0:01:49.7]} 40.
Kd3 {[%clk 0:01:32]} 40... Re6 {[%clk 0:01:41.5]} 41. g4 {[%clk 0:01:23.2]}
41... Rc6 {[%clk 0:01:32.5]} 42. Kc2 {[%clk 0:01:23.3]} 42... Rc8 {[%clk
0:01:33.2]} 43. Rb3 {[%clk 0:01:21.7]} 43... Rbc7 {[%clk 0:01:30.6]} 44. h5
{[%clk 0:01:21.7]} 44... Rh8 {[%clk 0:01:29.9]} 45. Rbd3 {[%clk 0:01:19.8]}
45... gxh5 {[%clk 0:01:23.7]} 46. Rxh5 {[%clk 0:01:20.4]} 46... Rxh5 {[%clk
0:01:22.6]} 47. gxh5 {[%clk 0:01:22.3]} 47... f5 {[%clk 0:01:21.3]} 48. exf5
{[%clk 0:01:18.1]} 48... Kh6 {[%clk 0:01:21.9]} 49. Rd5 {[%clk 0:01:18.4]} 49...
Bf6 {[%clk 0:01:12.8]} 50. Nd2 {[%clk 0:01:15.7]} 50... Kxh5 {[%clk 0:00:45.7]}
51. Ne4 {[%clk 0:01:15.2]} 51... Bd4 {[%clk 0:00:34.1]} 52. b3 {[%clk
0:01:03.2]} 52... a5 {[%clk 0:00:21.7]} 53. a4 {[%clk 0:01:00.3]} 53... Kh4
{[%clk 0:00:21.5]} 54. Nd6 {[%clk 0:00:47.4]} 54... Kg3 {[%clk 0:00:19.6]} 55.
Nc4 {[%clk 0:00:42.7]} 55... Kxf3 {[%clk 0:00:18.1]} 56. Nxa5 {[%clk 0:00:43.7]}
56... Ke4 {[%clk 0:00:19.2]} 57. Rd8 {[%clk 0:00:36.4]} 57... Kxf5 {[%clk
0:00:19.8]} 58. Nc4 {[%clk 0:00:37.2]} 58... Kg4 {[%clk 0:00:12.8]} 59. Rg8+
{[%clk 0:00:29.5]} 59... Kf4 {[%clk 0:00:13.2]} 60. a5 {[%clk 0:00:30.7]} 60...
f5 {[%clk 0:00:14.3]} 61. a6 {[%clk 0:00:31.8]} 61... Rh7 {[%clk 0:00:09.4]} 62.
Rb8 {[%clk 0:00:15.5]} 62... Rh2+ {[%clk 0:00:09.4]} 63. Kd3 {[%clk 0:00:16.8]}
63... Rh3+ {[%clk 0:00:09.2]} 64. Ke2 {[%clk 0:00:17.2]} 64... Rh2+ {[%clk
0:00:10.2]} 65. Kf1 {[%clk 0:00:17.4]} 65... Kf3 {[%clk 0:00:07.3]} 66. Ke1
{[%clk 0:00:16.8]} 66... Ra2 {[%clk 0:00:06.9]} 67. Rb6 {[%clk 0:00:15.7]} 67...
f4 {[%clk 0:00:07.4]} 68. Re6 {[%clk 0:00:14.2]} 68... Be3 {[%clk 0:00:06.8]}
69. Ne5+ {[%clk 0:00:09.9]} 69... Ke4 {[%clk 0:00:06.5]} 70. Nc4+ {[%clk
0:00:08.2]} 70... Kd3 {[%clk 0:00:06.7]} 71. Nxe3 {[%clk 0:00:04.3]} 71... fxe3
{[%clk 0:00:07.3]} 72. Rd6+ {[%clk 0:00:05.6]} 72... Kc3 {[%clk 0:00:08]} 73.
Re6 {[%clk 0:00:06.7]} 73... Kd3 {[%clk 0:00:07.6]} 74. Rd6+ {[%clk 0:00:07.8]}
74... Kc3 {[%clk 0:00:07.9]} 75. Re6 {[%clk 0:00:08.9]} 75... Kxb3 {[%clk
0:00:05.3]} 76. Rxe3+ {[%clk 0:00:09.8]} 76... Kb4 {[%clk 0:00:06.3]} 77. Re6
{[%clk 0:00:09.5]} 77... c4 {[%clk 0:00:05.7]} 78. Kd1 {[%clk 0:00:10.5]} 78...
Kb3 {[%clk 0:00:04.8]} 79. Rb6+ {[%clk 0:00:10.5]} 79... Kc3 {[%clk 0:00:05.6]}
80. Rc6 {[%clk 0:00:11.1]} 80... Ra1+ {[%clk 0:00:05.4]} 81. Ke2 {[%clk
0:00:12.3]} 81... Kb3 {[%clk 0:00:06.6]} 82. Rb6+ {[%clk 0:00:13]} 82... Kc2
{[%clk 0:00:07.6]} 83. Rc6 {[%clk 0:00:14.1]} 83... c3 {[%clk 0:00:08.7]} 84.
Rb6 {[%clk 0:00:14.5]} 84... Ra3 {[%clk 0:00:07.9]} 85. Ke1 {[%clk 0:00:14.5]}
85... Kc1 {[%clk 0:00:07.8]} 86. Ke2 {[%clk 0:00:14.9]} 86... c2 {[%clk
0:00:08.5]} 87. Ke1 {[%clk 0:00:14.8]} 87... Ra5 {[%clk 0:00:07.4]} 88. Ke2
{[%clk 0:00:15.2]} 88... Re5+ {[%clk 0:00:08]} 89. Kd3 {[%clk 0:00:16.3]} 89...
Kd1 {[%clk 0:00:07.4]} 90. a7 {[%clk 0:00:03.5]} 90... c1=Q {[%clk 0:00:06.6]}
91. a8=Q {[%clk 0:00:04.3]} 91... Qc2+ {[%clk 0:00:05.3]} 92. Kd4 {[%clk
0:00:05]} 92... Qc5+ {[%clk 0:00:05.8]} 93. Kd3 {[%clk 0:00:05.9]} 93... Re3#
{[%clk 0:00:06.6]} 0-1

[Event "GrandPrix_29.05"]
[Site "Chess.com"]
[Date "2020.05.29"]
[Round "3"]
[White "NikolaGry"]
[Black "vagpat"]
[Result "1/2-1/2"]
[WhiteElo "2012"]
[BlackElo "2208"]
[TimeControl "600+2"]
[EndTime "10:31:46 PDT"]
[Termination "Game drawn by stalemate"]

1. b3 {[%clk 0:10:01.9]} 1... Nf6 {[%clk 0:09:59]} 2. Bb2 {[%clk 0:10:01.5]}
2... b6 {[%clk 0:09:58.6]} 3. c4 {[%clk 0:10:01.8]} 3... Bb7 {[%clk 0:09:59.6]}
4. Nf3 {[%clk 0:10:01.4]} 4... g6 {[%clk 0:09:58]} 5. Bxf6 {[%clk 0:10:00.8]}
5... exf6 {[%clk 0:09:59]} 6. Nc3 {[%clk 0:09:59.5]} 6... f5 {[%clk 0:09:52.3]}
7. e3 {[%clk 0:09:58.1]} 7... Bg7 {[%clk 0:09:42.3]} 8. g3 {[%clk 0:09:55.1]}
8... O-O {[%clk 0:09:01.4]} 9. Bg2 {[%clk 0:09:50.4]} 9... c5 {[%clk 0:08:40.8]}
10. O-O {[%clk 0:09:42.3]} 10... d6 {[%clk 0:08:41.3]} 11. Ne1 {[%clk
0:09:11.2]} 11... Bxg2 {[%clk 0:08:37.4]} 12. Nxg2 {[%clk 0:09:11.1]} 12... Nc6
{[%clk 0:07:54.4]} 13. Rb1 {[%clk 0:08:42.5]} 13... Be5 {[%clk 0:07:19.6]} 14.
Nd5 {[%clk 0:08:27.5]} 14... Ne7 {[%clk 0:06:27.4]} 15. Nxe7+ {[%clk 0:08:00]}
15... Qxe7 {[%clk 0:06:27.3]} 16. Qf3 {[%clk 0:07:00.7]} 16... Rad8 {[%clk
0:06:11.5]} 17. Rfd1 {[%clk 0:06:48]} 17... d5 {[%clk 0:05:31.8]} 18. cxd5
{[%clk 0:06:31.6]} 18... Qd6 {[%clk 0:05:05.7]} 19. d4 {[%clk 0:06:13]} 19...
cxd4 {[%clk 0:05:04.7]} 20. exd4 {[%clk 0:06:11.6]} 20... Bg7 {[%clk 0:05:05.3]}
21. Ne3 {[%clk 0:06:06.9]} 21... Bh6 {[%clk 0:04:42.1]} 22. Rbc1 {[%clk
0:05:48.3]} 22... Bxe3 {[%clk 0:03:53]} 23. fxe3 {[%clk 0:05:43.5]} 23... Rfe8
{[%clk 0:03:53.9]} 24. Rc6 {[%clk 0:05:25]} 24... Qd7 {[%clk 0:03:10.3]} 25.
Rdc1 {[%clk 0:04:42.5]} 25... Re4 {[%clk 0:03:10.6]} 26. d6 {[%clk 0:04:24.6]}
26... Qe6 {[%clk 0:03:05.9]} 27. R1c3 {[%clk 0:03:55.3]} 27... Rxd6 {[%clk
0:03:04.8]} 28. Rxd6 {[%clk 0:03:48.7]} 28... Qxd6 {[%clk 0:03:06.7]} 29. Kf2
{[%clk 0:03:06.9]} 29... h5 {[%clk 0:03:04.8]} 30. Qe2 {[%clk 0:02:26]} 30... h4
{[%clk 0:02:57.8]} 31. Qc4 {[%clk 0:02:22.2]} 31... Rg4 {[%clk 0:01:41.6]} 32.
Qc8+ {[%clk 0:02:07.4]} 32... Kg7 {[%clk 0:01:40.3]} 33. Qc7 {[%clk 0:02:06.6]}
33... Qd5 {[%clk 0:01:18.4]} 34. Qe5+ {[%clk 0:01:36.2]} 34... Qxe5 {[%clk
0:01:16.6]} 35. dxe5 {[%clk 0:01:36.2]} 35... hxg3+ {[%clk 0:00:42.5]} 36. hxg3
{[%clk 0:01:36.4]} 36... Kf8 {[%clk 0:00:36.3]} 37. Rc7 {[%clk 0:01:17.4]} 37...
a5 {[%clk 0:00:35.3]} 38. Rc6 {[%clk 0:01:10.8]} 38... Rb4 {[%clk 0:00:34.5]}
39. e6 {[%clk 0:01:07.9]} 39... fxe6 {[%clk 0:00:35.4]} 40. Rxe6 {[%clk
0:01:08.3]} 40... Kf7 {[%clk 0:00:37]} 41. Rc6 {[%clk 0:01:06.7]} 41... Kg7
{[%clk 0:00:33]} 42. Kf3 {[%clk 0:01:01.7]} 42... Kh6 {[%clk 0:00:33.7]} 43. Rd6
{[%clk 0:00:59.3]} 43... Kg5 {[%clk 0:00:32.2]} 44. Rc6 {[%clk 0:00:56.1]} 44...
b5 {[%clk 0:00:27.1]} 45. Rc5 {[%clk 0:00:46.4]} 45... a4 {[%clk 0:00:22.5]} 46.
bxa4 {[%clk 0:00:42.9]} 46... bxa4 {[%clk 0:00:19.9]} 47. Ra5 {[%clk 0:00:38.5]}
47... Kh5 {[%clk 0:00:18.4]} 48. a3 {[%clk 0:00:34.6]} 48... Rc4 {[%clk
0:00:17.6]} 49. Ra8 {[%clk 0:00:33]} 49... g5 {[%clk 0:00:12]} 50. Rh8+ {[%clk
0:00:27.3]} 50... Kg6 {[%clk 0:00:12.8]} 51. Rg8+ {[%clk 0:00:28.3]} 51... Kh6
{[%clk 0:00:13.3]} 52. Ra8 {[%clk 0:00:26.9]} 52... g4+ {[%clk 0:00:07.5]} 53.
Kf2 {[%clk 0:00:23.5]} 53... Rc2+ {[%clk 0:00:05.9]} 54. Kf1 {[%clk 0:00:24.2]}
54... Rc3 {[%clk 0:00:06.5]} 55. Rxa4 {[%clk 0:00:23.5]} 55... Rxe3 {[%clk
0:00:07.2]} 56. Kf2 {[%clk 0:00:24.3]} 56... Rf3+ {[%clk 0:00:08.2]} 57. Kg2
{[%clk 0:00:25.2]} 57... Kg5 {[%clk 0:00:08.6]} 58. Ra6 {[%clk 0:00:22.4]} 58...
Rb3 {[%clk 0:00:09.2]} 59. Ra8 {[%clk 0:00:21.3]} 59... Rb2+ {[%clk 0:00:09.7]}
60. Kg1 {[%clk 0:00:21.9]} 60... Ra2 {[%clk 0:00:07.6]} 61. a4 {[%clk
0:00:20.7]} 61... Kf6 {[%clk 0:00:08.6]} 62. a5 {[%clk 0:00:16.2]} 62... Ke5
{[%clk 0:00:09.4]} 63. a6 {[%clk 0:00:12]} 63... Ke4 {[%clk 0:00:09.1]} 64. a7
{[%clk 0:00:04.7]} 64... Kf3 {[%clk 0:00:09.9]} 65. Rf8 {[%clk 0:00:05]} 65...
Rxa7 {[%clk 0:00:05.5]} 66. Rxf5+ {[%clk 0:00:05.2]} 66... Kxg3 {[%clk
0:00:06.8]} 67. Rf1 {[%clk 0:00:03]} 67... Ra2 {[%clk 0:00:07]} 68. Re1 {[%clk
0:00:03.9]} 68... Kh3 {[%clk 0:00:07]} 69. Rf1 {[%clk 0:00:04.4]} 69... Rb2
{[%clk 0:00:07]} 70. Re1 {[%clk 0:00:05.4]} 70... Rc2 {[%clk 0:00:07.8]} 71. Rd1
{[%clk 0:00:06.5]} 71... Re2 {[%clk 0:00:08.3]} 72. Rc1 {[%clk 0:00:07.5]} 72...
Rd2 {[%clk 0:00:07.2]} 73. Rb1 {[%clk 0:00:08.2]} 73... Rg2+ {[%clk 0:00:07.8]}
74. Kh1 {[%clk 0:00:08.8]} 74... Rg3 {[%clk 0:00:05.5]} 75. Rc1 {[%clk
0:00:09.1]} 75... Rd3 {[%clk 0:00:06.2]} 76. Rb1 {[%clk 0:00:09.2]} 76... Rf3
{[%clk 0:00:04.7]} 77. Kg1 {[%clk 0:00:09.4]} 77... g3 {[%clk 0:00:05.2]} 78.
Rc1 {[%clk 0:00:09.8]} 78... Rd3 {[%clk 0:00:03.8]} 79. Rb1 {[%clk 0:00:10.5]}
79... Rd2 {[%clk 0:00:04.8]} 80. Rc1 {[%clk 0:00:11.4]} 80... Rg2+ {[%clk
0:00:05.3]} 81. Kh1 {[%clk 0:00:11.9]} 81... Rf2 {[%clk 0:00:06.1]} 82. Kg1
{[%clk 0:00:11.2]} 82... Rf8 {[%clk 0:00:07.2]} 83. Rb1 {[%clk 0:00:11.6]} 83...
Rc8 {[%clk 0:00:07.6]} 84. Ra1 {[%clk 0:00:12.1]} 84... Rb8 {[%clk 0:00:08.4]}
85. Rc1 {[%clk 0:00:12.6]} 85... Rb3 {[%clk 0:00:09]} 86. Rd1 {[%clk 0:00:13.4]}
86... Kg4 {[%clk 0:00:10]} 87. Re1 {[%clk 0:00:14.1]} 87... Kf3 {[%clk 0:00:11]}
88. Rf1+ {[%clk 0:00:15.1]} 88... Kg4 {[%clk 0:00:12]} 89. Rd1 {[%clk
0:00:15.6]} 89... Re3 {[%clk 0:00:12.8]} 90. Rd8 {[%clk 0:00:15.3]} 90... Re4
{[%clk 0:00:10.1]} 91. Rg8+ {[%clk 0:00:15]} 91... Kf3 {[%clk 0:00:11.1]} 92.
Rf8+ {[%clk 0:00:15.1]} 92... Kg4 {[%clk 0:00:10.9]} 93. Rg8+ {[%clk 0:00:15.7]}
93... Kh3 {[%clk 0:00:12]} 94. Rh8+ {[%clk 0:00:16.3]} 94... Rh4 {[%clk
0:00:09.6]} 95. Rxh4+ {[%clk 0:00:15.6]} 95... Kxh4 {[%clk 0:00:11.5]} 96. Kg2
{[%clk 0:00:14.6]} 96... Kg4 {[%clk 0:00:13]} 97. Kg1 {[%clk 0:00:15.1]} 97...
Kf3 {[%clk 0:00:14.6]} 98. Kf1 {[%clk 0:00:15.8]} 98... Kf4 {[%clk 0:00:15.3]}
99. Kg2 {[%clk 0:00:14.7]} 99... Kg4 {[%clk 0:00:16.9]} 100. Kg1 {[%clk
0:00:14.7]} 100... Kh3 {[%clk 0:00:18.8]} 101. Kh1 {[%clk 0:00:15.2]} 101... g2+
{[%clk 0:00:20.7]} 102. Kg1 {[%clk 0:00:15.6]} 102... Kg3 {[%clk 0:00:22.6]}
1/2-1/2